bitfinex/quotes_SOLUSD_20250307
["timestamp","ask_amount","ask_price","bid_price","bid_amount"]
[1741311798844,0.033,140.6,140.57,44.37653845]
[1741311799050,0.033,140.6,140.58,312.0]
[1741311799838,0.033,140.6,140.56,137.8]
[1741311800137,0.033,140.6,140.51,11.52]
[1741311801056,0.033,140.6,140.47,143.9113]
[1741311801266,0.033,140.6,140.48,44.37653845]
[1741311801772,0.033,140.6,140.49,44.37653845]
[1741311801948,8.2211,140.59,140.48,44.37653845]
[1741311802144,8.2211,140.59,140.47,137.8]
[1741311802344,8.2211,140.59,140.48,44.37653845]
[1741311802769,8.2211,140.59,140.49,44.37653845]
[1741311802952,8.2211,140.59,140.49,312.0]
[1741311803274,9.9586,140.58,140.49,312.0]
[1741311803690,1.5758,140.59,140.51,0.28432314]
[1741311803888,4.4209,140.59,140.51,137.8]
[1741311804173,4.4209,140.59,140.5,182.17653845]
[1741311804749,11.5337,140.59,140.5,182.17653845]
[1741311804969,11.5337,140.59,140.51,44.37653845]
[1741311805785,11.5337,140.59,140.5,137.8]
[1741311805980,11.5337,140.59,140.47,137.8]
[1741311806386,11.5337,140.59,140.48,44.37653845]
[1741311806586,11.5337,140.59,140.47,44.37653845]
[1741311806788,11.5337,140.59,140.49,312.0]
[1741311809985,0.14216157,140.58,140.45,193.33653845]
[1741311810185,0.14216157,140.58,140.46,44.37653845]
[1741311810701,25.7594,140.59,140.48,44.37653845]
[1741311810890,11.5337,140.59,140.49,44.37653845]
[1741311811079,1.5758,140.59,140.55,44.37653845]
[1741311811402,0.033,140.6,140.56,44.37653845]
[1741311811578,0.033,140.6,140.57,44.37653845]
[1741311812100,0.033,140.6,140.59,44.37653845]
[1741311812282,0.033,140.6,140.57,137.8]
[1741311812485,0.033,140.6,140.55,44.37653845]
[1741311812890,0.033,140.6,140.57,312.0]
[1741311813779,0.033,140.6,140.52,167.58964886]
[1741311813987,0.033,140.6,140.52,193.31653845]
[1741311814184,0.033,140.6,140.5,148.94]
[1741311814390,0.033,140.6,140.51,44.37653845]
[1741311814592,0.033,140.6,140.52,44.37653845]
[1741311814985,0.033,140.6,140.51,44.37653845]
[1741311815503,0.14216157,140.58,140.44,389.43]
[1741311815702,0.14216157,140.58,140.44,407.6703]
[1741311815997,0.14216157,140.58,140.45,18.64964886]
[1741311816219,6.2801,140.59,140.47,44.37653845]
[1741311816401,6.2801,140.59,140.49,44.37653845]
[1741311816579,6.2801,140.59,140.47,137.8]
[1741311816902,6.2801,140.59,140.47,449.8]
[1741311817375,6.2801,140.59,140.47,182.17653845]
[1741311817580,9.9586,140.58,140.47,137.8]
[1741311818299,0.14216157,140.57,140.44,362.82653845]
[1741311818479,0.14216157,140.57,140.44,369.94683845]
[1741311818684,0.14216157,140.57,140.45,44.37653845]
[1741311818885,9.9586,140.58,140.47,44.37653845]
[1741311819086,9.9586,140.58,140.47,182.17653845]
[1741311819378,0.14216157,140.57,140.44,314.4504]
[1741311819592,9.96,140.56,140.44,358.82693845]
[1741311819789,2.8457,140.56,140.47,44.37653845]
[1741311819973,2.8457,140.56,140.48,44.37653845]
[1741311820375,2.8457,140.56,140.47,182.17653845]
[1741311820684,2.8457,140.56,140.49,312.0]
[1741311820886,13.52541589,140.56,140.49,312.0]
[1741311821586,6.41111589,140.56,140.49,312.0]
[1741311821983,2.8455,140.58,140.49,51.49443845]
[1741311822175,2.8455,140.58,140.49,18.64964886]
[1741311822597,2.8455,140.58,140.49,44.37653845]
[1741311822800,2.8451,140.59,140.51,44.37653845]
[1741311822984,8.0618626,140.6,140.52,44.37653845]
[1741311823190,8.0618626,140.6,140.5,156.44964886]
[1741311823591,15.1741626,140.6,140.5,200.82618731]
[1741311823800,8.0618626,140.6,140.51,44.37653845]
[1741311824106,8.0618626,140.6,140.5,200.82618731]
[1741311824986,15.1741626,140.6,140.53,312.0]
[1741311825907,8.0618626,140.6,140.51,44.37653845]
[1741311826088,8.0618626,140.6,140.51,51.49333845]
[1741311826614,0.033,140.6,140.54,44.37653845]
[1741311826785,0.033,140.6,140.55,44.37653845]
[1741311826981,2.878,140.6,140.54,182.17653845]
[1741311827187,2.878,140.6,140.54,137.8]
[1741311827409,0.033,140.6,140.54,182.17653845]
[1741311827919,0.033,140.6,140.55,18.64964886]
[1741311828117,0.033,140.6,140.55,63.02618731]
[1741311828284,0.033,140.6,140.55,202.31949995]
[1741311828488,0.033,140.6,140.56,44.37653845]
[1741311828684,0.033,140.6,140.57,312.0]
[1741311829106,0.033,140.6,140.53,137.8]
[1741311829312,0.033,140.6,140.51,44.37653845]
[1741311829632,0.033,140.6,140.5,137.8]
[1741311830223,0.033,140.6,140.49,10.98]
[1741311830604,6.0377,140.59,140.47,182.17653845]
[1741311830926,1.70646157,140.58,140.46,148.6]
[1741311831102,1.70646157,140.58,140.46,10.8]
[1741311831311,1.5643,140.58,140.47,44.37653845]
[1741311831489,1.5643,140.58,140.48,44.37653845]
[1741311831694,2.8455,140.57,140.49,18.64964886]
[1741311831995,9.9593,140.57,140.47,44.37653845]
[1741311832192,9.9593,140.57,140.49,312.0]
[1741311833915,9.9593,140.57,140.5,18.64964886]
[1741311833916,2.8455,140.57,140.5,18.64964886]
[1741311834516,2.8455,140.57,140.5,156.44964886]
[1741311834692,1.5643,140.58,140.51,29.55387434]
[1741311835013,4.4097,140.58,140.52,18.64964886]
[1741311835221,1.5643,140.58,140.52,18.64964886]
[1741311835603,2.8453,140.59,140.52,186.0035232]
[1741311836129,2.8453,140.59,140.52,137.8]
[1741311836293,2.8453,140.59,140.51,29.55387434]
[1741311836502,2.8453,140.59,140.5,18.64964886]
[1741311836810,2.8453,140.59,140.51,29.55387434]
[1741311837128,2.8453,140.59,140.54,312.0]
[1741311838023,0.033,140.6,140.54,186.0035232]
[1741311838323,0.033,140.6,140.54,167.35387434]
[1741311838522,0.033,140.6,140.54,137.8]
[1741311839298,0.033,140.6,140.53,10.7]
[1741311841015,0.033,140.6,140.53,322.7]
[1741311841201,0.033,140.6,140.53,312.0]
[1741311841599,0.033,140.6,140.5,238.54964886]
[1741311841801,0.033,140.6,140.5,219.9]
[1741311842116,9.9902,140.6,140.5,82.1]
[1741311842294,9.9902,140.6,140.48,156.44964886]
[1741311842625,9.9902,140.6,140.48,186.0035232]
[1741311842810,0.14216157,140.59,140.47,249.45387434]
[1741311844017,0.14216157,140.57,140.46,137.8]
[1741311844219,6.4779,140.55,140.46,137.8]
[1741311844417,6.4779,140.55,140.44,408.07964886]
[1741311844625,6.4779,140.55,140.44,720.07964886]
[1741311844800,6.4779,140.55,140.44,563.63]
[1741311845726,0.14216157,140.54,140.44,312.03]
[1741311845897,0.14216157,140.54,140.44,0.03]
[1741311846240,0.14216157,140.52,140.44,0.03]
[1741311846623,91.02941193,140.53,140.44,0.03]
[1741311846807,2.8463,140.53,140.44,48.2335232]
[1741311847126,2.8463,140.53,140.46,29.55387434]
[1741311847493,8.6866,140.56,140.49,29.55387434]
[1741311847494,1.572,140.56,140.49,29.55387434]
[1741311847720,1.572,140.56,140.49,167.35387434]
[1741311847934,1.572,140.56,140.49,137.8]
[1741311848236,4.4177,140.56,140.49,137.8]
[1741311848906,11.532,140.56,140.49,449.8]
[1741311849220,11.532,140.56,140.49,312.0]
[1741311849440,4.4177,140.56,140.49,312.0]
[1741311849723,4.4177,140.56,140.47,29.55387434]
[1741311849896,4.4177,140.56,140.46,249.45387434]
[1741311850226,11.532,140.56,140.46,219.9]
[1741311850820,11.532,140.56,140.46,249.45387434]
[1741311851013,4.4177,140.56,140.48,29.55387434]
[1741311851232,4.4177,140.56,140.49,29.55387434]
[1741311851525,4.4177,140.56,140.49,137.8]
[1741311852721,1.572,140.56,140.5,48.2035232]
[1741311852926,0.033,140.6,140.51,29.55387434]
[1741311853118,0.14216157,140.58,140.48,137.8]
[1741311853316,0.14216157,140.56,140.43,144.9209]
[1741311853514,10.34,140.57,140.45,29.55387434]
[1741311853712,10.34,140.57,140.48,29.55387434]
[1741311853926,10.34,140.57,140.49,48.2035232]
[1741311854105,10.34,140.57,140.49,29.55387434]
[1741311854308,2.8451,140.59,140.5,18.64964886]
[1741311854505,0.033,140.6,140.5,55.3206232]
[1741311854709,0.033,140.6,140.5,156.44964886]
[1741311855019,0.033,140.6,140.5,186.0035232]
[1741311855214,0.033,140.6,140.51,29.69603591]
[1741311855425,0.033,140.6,140.53,48.2035232]
[1741311855628,0.033,140.6,140.56,18.64964886]
[1741311855927,0.033,140.6,140.56,156.44964886]
[1741311856147,0.033,140.6,140.58,18.64964886]
[1741311856516,0.033,140.6,140.58,25.76284886]
[1741311856914,0.033,140.6,140.58,156.44964886]
[1741311857232,0.033,140.6,140.59,29.55387434]
[1741311857411,0.033,140.6,140.59,186.14568477]
[1741311857938,0.033,140.6,140.59,156.44964886]
[1741311858112,0.033,140.6,140.59,137.8]
[1741311858719,0.033,140.6,140.59,156.44964886]
[1741311859220,0.033,140.6,140.59,281.92424634]
[1741311860341,0.033,140.6,140.59,593.92424634]
[1741311861132,0.033,140.62,140.6,18.933972]
[1741311861332,0.033,140.62,140.61,59.95799147]
[1741311861537,0.033,140.62,140.61,309.55402738]
[1741311861843,0.033,140.62,140.61,308.06172068]
[1741311862016,0.033,140.62,140.61,278.50784634]
[1741311863215,0.033,140.62,140.61,278.36568477]
[1741311863412,0.033,140.62,140.61,248.81181043]
[1741311863630,0.033,140.68,140.67,2.14216157]
[1741311863832,0.033,140.75,140.72,0.14216157]
[1741311864140,11.15326439,140.8,140.76,18.64964886]
[1741311864316,11.15326439,140.8,140.79,48.2035232]
[1741311864632,11.15326439,140.8,140.79,468.59181043]
[1741311864932,0.49349165,140.8,140.79,498.28784634]
[1741311865235,11.08924441,140.84,140.81,0.28432314]
[1741311865439,11.08924441,140.84,140.83,48.2035232]
[1741311865626,11.08924441,140.84,140.83,186.14568477]
[1741311865938,6.25262729,140.84,140.83,215.69955911]
[1741311866240,22.30652879,140.85,140.84,20.79181043]
[1741311866436,22.30652879,140.85,140.84,247.30172068]
[1741311866642,22.30652879,140.85,140.84,276.34974456]
[1741311867235,2.8373,140.98,140.86,0.28432314]
[1741311867540,2.8373,140.98,140.87,18.64964886]
[1741311867737,9.9305,140.98,140.86,137.8]
[1741311867942,9.9305,140.98,140.86,181.87788628]
[1741311868234,2.8373,140.98,140.88,44.07788628]
[1741311868415,9.9305,140.98,140.88,312.0]
[1741311868749,2.8373,140.98,140.88,312.0]
[1741311868951,2.8373,140.98,140.9,44.07788628]
[1741311869247,7.638,141.02,140.91,64.35934895]
[1741311869429,205.73503985,141.2,140.98,44.07788628]
[1741311869430,8.9606,141.07,140.98,44.07788628]
[1741311869617,8.9606,141.07,140.98,181.87788628]
[1741311869814,8.9606,141.07,140.98,137.8]
[1741311870031,8.9606,141.07,141.0,44.07788628]
[1741311870340,6.4643,141.12,141.01,18.79181043]
[1741311870526,2.8345,141.12,141.06,44.07788628]
[1741311870718,0.033,141.13,141.06,10.74]
[1741311870919,0.033,141.13,141.08,44.07788628]
[1741311871223,0.033,141.13,141.08,137.8]
[1741311871426,0.033,141.13,141.11,44.07788628]
[1741311871614,0.033,141.13,141.11,137.8]
[1741311872242,0.033,141.13,141.09,137.8]
[1741311872560,5.61611754,141.2,141.15,2.0]
[1741311872718,50.0,141.3,141.19,88.15577256]
[1741311872917,0.25088253,141.36,141.28,44.07788628]
[1741311873149,0.25088253,141.36,141.29,0.28432314]
[1741311873319,0.25088253,141.36,141.3,1.48497851]
[1741311873522,0.25088253,141.36,141.31,0.14216157]
[1741311873732,0.25088253,141.36,141.32,1.48505687]
[1741311873929,0.25088253,141.36,141.33,10.86]
[1741311874131,2.0,141.54,141.34,20.41907472]
[1741311874444,60.73023777,141.58,141.34,139.28510272]
[1741311874445,9.8953,141.48,141.34,139.28510272]
[1741311874620,9.8953,141.48,141.34,181.87788628]
[1741311874953,9.8953,141.48,141.3,137.8]
[1741311874954,2.0,141.41,141.3,137.8]
[1741311875122,0.14216157,141.39,141.25,0.14216157]
[1741311875323,0.14216157,141.37,141.23,137.8]
[1741311875516,6.6395,141.37,141.23,137.8]
[1741311875751,6.6395,141.37,141.23,181.87788628]
[1741311875958,6.6395,141.37,141.24,0.14216157]
[1741311876289,9.9016,141.39,141.29,44.07788628]
[1741311876428,9.9016,141.39,141.29,137.8]
[1741311876843,2.829,141.39,141.29,137.8]
[1741311877247,7.0726,141.39,141.29,137.8]
[1741311877643,2.8284,141.42,141.34,44.07788628]
[1741311877835,2.8284,141.42,141.34,137.8]
[1741311878045,2.8284,141.42,141.34,181.87788628]
[1741311878364,2.8284,141.42,141.34,449.8]
[1741311878860,2.8284,141.42,141.36,44.07788628]
[1741311879064,2.8274,141.47,141.36,181.87788628]
[1741311879345,2.8274,141.47,141.39,44.07788628]
[1741311879544,11.0,141.54,141.39,44.07788628]
[1741311879545,0.70847147,141.75,141.59,2.0]
[1741311879722,0.70847147,141.75,141.73,107.08974456]
[1741311879923,0.10878253,141.74,141.73,269.51577256]
[1741311880141,1.5839,141.98,141.74,45.23882322]
[1741311880142,3.54749786,141.96,141.74,45.23882322]
[1741311880375,5.71002685,141.95,141.77,0.28432314]
[1741311880564,7.0454,141.94,141.84,44.07788628]
[1741311880956,1.5839,141.98,141.83,0.14216157]
[1741311880957,2.8189,141.9,141.83,0.14216157]
[1741311881285,7.0449,141.95,141.8,0.28432314]
[1741311881458,50.0,142.02,141.8,0.28432314]
[1741311881459,2.8177,141.96,141.84,63.01185828]
[1741311881659,5.7587772,142.02,141.84,44.36220942]
[1741311881849,1.869854,141.85,141.84,312.28432314]
[1741311882054,9.8563,142.04,141.85,0.28432314]
[1741311882260,9.8563,142.04,141.85,18.933972]
[1741311882482,0.033,142.0,141.86,2.0]
[1741311882665,0.033,142.0,141.88,18.933972]
[1741311882966,0.033,142.0,141.95,0.14216157]
[1741311883167,0.033,142.0,141.96,44.07788628]
[1741311883368,0.033,142.0,141.97,0.14216157]
[1741311883666,1.3656399,142.0,141.95,14.36]
[1741311883852,1.3656399,142.0,141.96,0.28432314]
[1741311884061,1.3656399,142.0,141.99,0.14216157]
[1741311884370,1.3656399,142.0,141.97,18.933972]
[1741311884586,1.2235399,142.0,141.99,44.36220942]
[1741311884746,1.2235399,142.0,141.99,64.29967532]
[1741311885149,1.2235399,142.0,141.99,20.22178904]
[1741311885355,1.2235399,142.0,141.99,376.29967532]
[1741311885554,1.2235399,142.0,141.99,357.50786489]
[1741311885764,1.2235399,142.0,141.99,357.65002646]
[1741311885957,1.2235399,142.0,141.99,356.22004785]
[1741311886295,1.2235399,142.0,141.99,312.0]
[1741311886771,1.2235399,142.0,141.96,44.07788628]
[1741311886949,1.2235399,142.0,141.9,2.0]
[1741311887157,1.2235399,142.0,141.91,19.9381919]
[1741311887449,4.0404399,142.0,141.91,1.28854304]
[1741311888181,11.0826399,142.0,141.9,14.42]
[1741311888565,11.0826399,142.0,141.83,182.64]
[1741311888863,11.0826399,142.0,141.83,183.92926985]
[1741311889263,11.8604,141.98,141.83,1.28926985]
[1741311889467,9.8604,141.98,141.83,1.28926985]
[1741311889649,9.8604,141.98,141.9,44.07788628]
[1741311889856,23.9468,141.98,141.83,18.64964886]
[1741311890176,23.9468,141.98,141.77,158.3003]
[1741311890372,23.9468,141.98,141.82,44.07788628]
[1741311890571,18.64964886,141.97,141.79,18.64964886]
[1741311890780,18.64964886,141.97,141.79,19.93928242]
[1741311890969,20.64964886,141.97,141.79,19.93928242]
[1741311891178,9.8604,141.98,141.91,44.07788628]
[1741311891363,9.8604,141.98,141.87,0.28432314]
[1741311891550,9.8604,141.98,141.87,0.14216157]
[1741311891875,9.8604,141.98,141.86,14.32]
[1741311892078,18.79181043,141.97,141.79,15.56963356]
[1741311892261,18.79181043,141.97,141.79,153.36963356]
[1741311892577,18.64964886,141.98,141.83,18.64964886]
[1741311892876,18.64964886,141.98,141.83,0.28432314]
[1741311893172,11.30170915,141.99,141.85,0.28432314]
[1741311893570,9.8604,141.98,141.88,0.14216157]
[1741311893771,0.14216157,141.97,141.8,18.64964886]
[1741311893967,0.14216157,141.97,141.8,156.44964886]
[1741311894473,18.64964886,141.96,141.8,137.8]
[1741311894671,2.14216157,141.95,141.8,137.8]
[1741311895055,0.14216157,141.93,141.8,181.87788628]
[1741311895270,18.64964886,141.94,141.81,44.07788628]
[1741311895564,18.64964886,141.92,141.8,181.87788628]
[1741311895963,24.3991,141.92,141.8,181.87788628]
[1741311896165,24.3991,141.92,141.8,137.8]
[1741311896754,0.14216157,141.92,141.8,181.87788628]
[1741311896962,18.64964886,141.92,141.8,181.87788628]
[1741311897163,18.64964886,141.92,141.8,137.8]
[1741311897481,23.9587,141.91,141.81,0.14216157]
[1741311897663,23.9587,141.91,141.81,137.8]
[1741311898592,18.79181043,141.9,141.79,137.8]
[1741311899483,23.9621,141.89,141.79,137.8]
[1741311899655,23.9621,141.89,141.79,111.2522]
[1741311899861,18.64964886,141.88,141.76,84.7044]
[1741311900062,23.9621,141.89,141.78,44.07788628]
[1741311900263,23.9621,141.89,141.77,0.14216157]
[1741311900868,18.79181043,141.88,141.76,84.7044]
[1741311901668,1.2235399,141.91,141.8,44.07788628]
[1741311901869,1.2235399,141.91,141.81,0.14216157]
[1741311902073,1.2235399,141.91,141.8,84.7044]
[1741311902375,20.76374886,141.9,141.76,98.6644]
[1741311902583,17.9703,141.9,141.76,98.6644]
[1741311902894,36.61994886,141.9,141.77,0.14216157]
[1741311903095,18.64964886,141.89,141.77,84.7044]
[1741311903301,0.14216157,141.88,141.76,13.96]
[1741311903484,18.64964886,141.86,141.73,84.7044]
[1741311903996,2.14216157,141.85,141.73,84.7044]
[1741311904174,13.92,141.85,141.73,84.7044]
[1741311904495,18.64964886,141.84,141.68,84.7044]
[1741311904697,2.0,141.79,141.68,84.7044]
[1741311904872,0.14216157,141.83,141.68,84.7044]
[1741311904873,2.0,141.78,141.68,84.7044]
[1741311905191,3.45502233,141.86,141.68,440.78228628]
[1741311905410,18.64964886,141.86,141.76,44.07788628]
[1741311905609,7.4021,141.85,141.77,44.07788628]
[1741311905776,7.4021,141.85,141.78,0.14216157]
[1741311906112,2.1147,141.87,141.81,0.14216157]
[1741311906290,2.1147,141.87,141.81,84.84656157]
[1741311906812,1.2235399,141.91,141.83,0.14216157]
[1741311906977,1.2235399,141.91,141.84,0.14216157]
[1741311907178,0.033,141.89,141.88,0.14216157]
[1741311907388,0.033,141.89,141.88,84.84656157]
[1741311907599,0.033,141.89,141.88,128.92444785]
[1741311908094,0.033,141.89,141.88,84.84656157]
[1741311908299,0.033,141.89,141.88,84.7044]
[1741311908492,0.033,141.89,141.88,396.7044]
[1741311908696,0.033,141.89,141.88,312.0]
[1741311908998,0.033,141.89,141.82,84.7044]
[1741311909174,0.033,141.89,141.88,44.22004785]
[1741311909379,0.033,141.89,141.88,128.92444785]
[1741311909792,0.033,141.89,141.88,84.84656157]
[1741311910003,0.033,141.89,141.88,84.7044]
[1741311910511,0.033,141.89,141.88,128.78228628]
[1741311910802,1.2235399,141.91,141.88,84.6714]
[1741311911099,8.6225399,141.91,141.84,84.6714]
[1741311911279,3.3375399,141.91,141.84,84.6714]
[1741311911682,8.6225399,141.91,141.84,84.6714]
[1741311912209,8.6225399,141.91,141.82,84.6714]
[1741311913187,19.1925399,141.91,141.82,84.6714]
[1741311913517,18.64964886,141.88,141.79,84.6714]
[1741311914004,19.87318876,141.88,141.79,84.6714]
[1741311914205,0.14216157,141.87,141.79,84.6714]
[1741311914505,19.87318876,141.88,141.79,84.6714]
[1741311914883,18.64964886,141.85,141.75,84.7014]
[1741311915081,18.64964886,141.87,141.75,440.77928628]
[1741311915296,2.0,141.85,141.75,84.7014]
[1741311915500,7.4026,141.84,141.75,84.7014]
[1741311915682,17.9778,141.84,141.75,84.7014]
[1741311915879,18.79181043,141.83,141.75,0.03]
[1741311916085,18.64964886,141.83,141.75,0.03]
[1741311916996,2.0,141.82,141.75,0.03]
[1741311917390,18.64964886,141.83,141.75,0.03]
[1741311917603,7.4036,141.82,141.75,0.03]
[1741311917805,7.4036,141.82,141.75,84.7014]
[1741311918633,17.9803,141.82,141.75,0.03]
[1741311918927,17.9803,141.82,141.75,84.7014]
[1741311919298,19.9803,141.82,141.75,59.6174]
[1741311919819,17.9803,141.82,141.75,59.6474]
[1741311920126,19.9803,141.82,141.75,59.6474]
[1741311920504,2.0,141.81,141.75,59.6474]
[1741311920825,19.9803,141.82,141.75,59.6474]
[1741311921120,17.9803,141.82,141.75,59.6474]
[1741311921416,2.0,141.81,141.75,59.6474]
[1741311921620,13.9868,141.82,141.75,59.6474]
[1741311921823,11.9868,141.82,141.75,59.6474]
[1741311922708,13.9868,141.82,141.75,46.1675]
[1741311922920,11.9868,141.82,141.75,46.1675]
[1741311923224,11.9868,141.82,141.75,43.4715]
[1741311923400,11.9868,141.82,141.75,42.9323]
[1741311923920,13.9868,141.82,141.75,42.9323]
[1741311924232,11.9868,141.82,141.75,0.03]
[1741311924613,25.4268,141.82,141.75,0.03]
[1741311925115,25.3868,141.82,141.75,0.03]
[1741311925324,2.0,141.81,141.71,27.07131821]
[1741311925525,2.0,141.79,141.71,69.86581821]
[1741311925698,32.4379,141.82,141.71,42.7945]
[1741311925899,4.9357,141.82,141.8,44.07788628]
[1741311926122,1.4102,141.82,141.8,42.7945]
[1741311926328,4.9341,141.87,141.8,44.27460098]
[1741311926730,4.9341,141.87,141.8,42.7945]
[1741311927240,11.9828,141.87,141.74,1.48020914]
[1741311927534,4.9341,141.87,141.78,44.07788628]
[1741311927703,4.9341,141.87,141.79,1.62222554]
[1741311928243,11.9828,141.87,141.78,1.48024113]
[1741311928546,11.9828,141.87,141.78,42.7945]
[1741311928728,11.9828,141.87,141.78,44.27486845]
[1741311928909,11.9828,141.87,141.8,312.0]
[1741311928910,13.2063399,141.87,141.8,312.0]
[1741311929101,13.2063399,141.87,141.75,42.7945]
[1741311929102,18.64964886,141.86,141.75,42.7945]
[1741311929418,18.64964886,141.86,141.75,44.27509141]
[1741311929613,18.64964886,141.86,141.75,42.7945]
[1741311929824,11.9844,141.85,141.75,42.7945]
[1741311930020,11.9844,141.85,141.76,1.62282679]
[1741311930404,11.9844,141.85,141.76,44.22004785]
[1741311930911,4.9347,141.85,141.78,0.14216157]
[1741311931111,1.4099,141.85,141.79,1.48027513]
[1741311931506,4.9347,141.85,141.78,42.93666157]
[1741311931706,3.5248,141.85,141.78,42.93666157]
[1741311931914,3.5248,141.85,141.78,42.7945]
[1741311933622,3.5248,141.85,141.78,354.7945]
[1741311933826,3.5248,141.85,141.75,0.03]
[1741311933827,3.5248,141.85,141.75,42.8245]
[1741311935018,18.64964886,141.84,141.75,0.03]
[1741311935314,31.78964886,141.84,141.75,0.03]
[1741311935827,11.986,141.83,141.75,0.03]
[1741311936025,11.986,141.83,141.72,42.7945]
[1741311936026,2.0,141.8,141.72,42.7945]
[1741311936211,20.19474886,141.82,141.72,16.1101]
[1741311936833,1.5451,141.82,141.72,328.1101]
[1741311937311,1.5451,141.82,141.72,60.18798628]
[1741311937523,1.5451,141.82,141.72,16.1101]
[1741311938036,4.9361,141.81,141.72,16.1101]
[1741311938711,4.9361,141.81,141.73,27.06749808]
[1741311939111,4.9361,141.81,141.73,17.73330433]
[1741311939436,4.9361,141.81,141.73,17.59114276]
[1741311939835,11.9877,141.81,141.73,17.59114276]
[1741311940011,11.9877,141.81,141.73,16.1101]
[1741311940516,11.9877,141.81,141.73,328.1101]
[1741311940716,11.9877,141.81,141.73,16.1101]
[1741311941434,11.9877,141.81,141.74,24.04740973]
[1741311941734,5.6412,141.81,141.73,16.1101]
[1741311942930,9.13073641,141.81,141.74,1.48094741]
[1741311943218,9.13073641,141.81,141.74,17.59104741]
[1741311943936,9.13073641,141.81,141.74,329.59104741]
[1741311944137,9.13073641,141.81,141.74,328.1101]
[1741311944838,9.13073641,141.81,141.74,328.1401]
[1741311945025,5.6412,141.81,141.74,328.1401]
[1741311945211,5.6412,141.81,141.74,0.03]
[1741311945415,5.6412,141.81,141.74,0.0001]
[1741311946347,5.6412,141.81,141.74,312.0001]
[1741311947126,5.6412,141.81,141.74,0.0001]
[1741311948444,2.4675,141.84,141.76,0.14216157]
[1741311948819,2.4675,141.84,141.76,137.8]
[1741311949436,2.4675,141.84,141.77,1.62285444]
[1741311949620,2.4675,141.84,141.77,139.42285444]
[1741311949815,2.4675,141.84,141.77,137.94216157]
[1741311950048,2.4675,141.84,141.78,1.48031684]
[1741311950339,2.4675,141.84,141.78,313.48031684]
[1741311950540,2.4675,141.84,141.76,137.8]
[1741311950916,2.4675,141.84,141.77,1.62270815]
[1741311951126,2.4675,141.84,141.77,139.42270815]
[1741311951328,2.4675,141.84,141.77,137.8]
[1741311951532,2.4675,141.84,141.74,0.0001]
[1741311951533,5.9925,141.84,141.76,137.8]
[1741311952923,18.64964886,141.83,141.74,137.8001]
[1741311953123,18.64964886,141.83,141.74,0.0001]
[1741311953343,5.9933,141.82,141.74,0.0001]
[1741311955350,5.2882,141.82,141.74,1.48099012]
[1741311955549,5.2882,141.82,141.74,0.0001]
[1741311956462,5.2882,141.82,141.74,139.42307544]
[1741311956651,5.2882,141.82,141.74,137.8001]
[1741311957741,8.82765693,141.82,141.74,137.8001]
[1741311958452,8.82765693,141.82,141.74,449.8001]
[1741311958646,8.82765693,141.82,141.74,137.8001]
[1741311959344,9.53275693,141.82,141.74,137.8001]
[1741311960765,9.53275693,141.82,141.74,125.2649]
[1741311961467,3.53945693,141.82,141.74,125.2649]
[1741311961657,18.64964886,141.84,141.74,437.2649]
[1741311962046,4.71680011,141.85,141.75,45.7008548]
[1741311962341,1.2565399,141.85,141.78,0.14216157]
[1741311962546,1.2565399,141.85,141.79,1.48013331]
[1741311962746,1.2565399,141.85,141.79,125.2649]
[1741311963158,1.2565399,141.85,141.76,126.74501789]
[1741311963457,1.2565399,141.85,141.76,125.2649]
[1741311963663,13.2165399,141.85,141.76,125.2649]
[1741311963864,18.64964886,141.84,141.73,126.74543943]
[1741311964169,13.2165399,141.85,141.74,0.14216157]
[1741311964371,1.2565399,141.85,141.78,0.14216157]
[1741311964667,1.2565399,141.85,141.8,0.14216157]
[1741311965059,1.2565399,141.85,141.8,312.14216157]
[1741311965263,1.2565399,141.85,141.82,0.14216157]